[Event "ETCC Open 2023"]
[Site "Budva"]
[Date "2023.11.11"]
[Round "1.72"]
[White "Saraci, Korab"]
[Black "Dvirnyy, Danyyil"]
[Result "0-1"]
[ECO "B19"]
[WhiteElo "2200"]
[BlackElo "2495"]
[Annotator "RC"]
[PlyCount "96"]
[EventDate "2023.11.10"]
[EventType "team-tourn"]
[EventCountry "MNE"]
[SourceTitle "playchess.com"]
[Source "ChessBase"]
[SourceQuality "1"]
[WhiteTeam "Kosovo"]
[BlackTeam "Italy"]
[WhiteTeamCountry "KOS"]
[BlackTeamCountry "ITA"]
[TimeControl "40/5400+30:1800+30"]

1. e4 {[%emt 0:00:03]} c6 {[%emt 0:00:09]} 2. d4 {[%emt 0:00:15]} d5 {[%emt 0:00:05]} 3. Nd2 {[%emt 0:00:41]} dxe4 {[%emt 0:00:09]} 4. Nxe4 {[%emt 0:00:07]} Bf5 {[%emt 0:00:06]} 5. Ng3 {[%emt 0:00:11]} Bg6 {[%emt 0:00:08]} 6. Nf3 {[%emt 0:02:48]} Nd7 {[%emt 0:01:12]} 7. h4 {[%emt 0:00:10]} h6 {[%emt 0:00:06]} 8. Bd3 {[%emt 0:02:13]} Bxd3 {[%emt 0:00:08]} 9. Qxd3 {[%emt 0:00:08]} e6 {[%emt 0:00:09]} 10. O-O {[%emt 0:02:16]} Ngf6 {[%emt 0:02:33]} 11. Re1 {[%emt 0:07:50]} Be7 {[%emt 0:01:28]} 12. a4 {[%emt 0:03:22]} O-O {[%emt 0:03:35]} 13. Qb3 {[%emt 0:06:23]} Qb6 {[%emt 0:04:46]} 14. Qxb6 {[%emt 0:11:55]} axb6 {[%emt 0:00:20]} 15. Bd2 {[%emt 0:00:37]} Bd6 {[%emt 0:05:51]} 16. Ne5 {[%emt 0:08:03]} Rfd8 {[%emt 0:01:48]} 17. Nf1 {[%emt 0:10:42]} c5 {[%emt 0:08:54]} 18. Nc4 {[%emt 0:02:07]} Bc7 {[%emt 0:04:24]} 19. dxc5 {[%emt 0:01:49]} bxc5 {[%emt 0:06:45]} 20. b3 {[%emt 0:00:33]} Nd5 {[%emt 0:03:36]} 21. Nfe3 {[%emt 0:14:19]} Ne7 {[%emt 0:00:37]} 22. Bc3 {[%emt 0:01:49]} Nc6 {[%emt 0:02:53]} 23. Na3 {[%emt 0:02:28]} Be5 {[%emt 0:03:47]} 24. Bxe5 {[%emt 0:01:00]} Ndxe5 {[%emt 0:00:08]} 25. Nb5 {[%emt 0:02:44]} Nd4 {[%emt 0:03:01]} 26. Nxd4 {[%emt 0:07:16]} cxd4 {[%emt 0:01:16]} 27. Nd1 {[%emt 0:01:55]} Ng6 {[%emt 0:06:14]} 28. g3 {[%emt 0:00:10]} Rac8 {[%emt 0:05:59]} 29. Re2 {[%emt 0:00:46]} Ne7 {[%emt 0:02:09]} 30. Nb2 {[%emt 0:02:37]} Nc6 {[%emt 0:07:17]} 31. Rd1 {[%emt 0:02:01]} Nb4 {[%emt 0:06:33]} 32. Nc4 {[%emt 0:00:39]} Na2 {[%emt 0:00:12]} 33. Re5 {[%emt 0:01:21]} Nc3 {[%emt 0:00:20]} 34. Ra1 {[%emt 0:00:50]} Rc6 {[%emt 0:02:47]} 35. Ra5 {[%emt 0:01:51]} f6 {[%emt 0:03:45]} 36. Ra7 {[%emt 0:01:15]} Rc7 {[%emt 0:00:12]} 37. Na3 {[%emt 0:01:05]} e5 {[%emt 0:01:45]} 38. a5 {[%emt 0:02:26]} Nd5 {[%emt 0:07:35]} 39. Kf1 {[%emt 0:00:37]} Nb4 {[%emt 0:00:24]} 40. Nb5 {[%emt 0:00:33]} Rcd7 {[%emt 0:00:28]} 41. a6 {[%emt 0:10:53]} bxa6 {[%emt 0:02:32]} 42. Rxd7 {[%emt 0:02:43]} Rxd7 {[%emt 0:00:07]} 43. Na3 {[%emt 0:00:05]} Rc7 {[%emt 0:03:24]} 44. Ke2 {[%emt 0:05:51]} Nxc2 {[%emt 0:10:20]} 45. Rc1 {[%emt 0:00:22]} d3+ {[%emt 0:04:26]} 46. Kxd3 {[%emt 0:00:40]} Nb4+ {[%emt 0:00:08]} 47. Kd2 {[%emt 0:00:07]} Rxc1 {[%emt 0:00:14]} 48. Kxc1 {[%emt 0:00:07]} Nd3+ {[%emt 0:00:06]} 0-1

[Event "ETCC Open 2023"]
[Site "Budva"]
[Date "2023.11.11"]
[Round "1.73"]
[White "Muir, Andrew J"]
[Black "Subelj, Jan"]
[Result "0-1"]
[ECO "E41"]
[WhiteElo "2227"]
[BlackElo "2513"]
[Annotator "RC"]
[PlyCount "48"]
[EventDate "2023.11.10"]
[EventType "team-tourn"]
[EventCountry "MNE"]
[SourceTitle "playchess.com"]
[Source "ChessBase"]
[SourceQuality "1"]
[WhiteTeam "Scotland"]
[BlackTeam "Slovenia"]
[WhiteTeamCountry "SCO"]
[BlackTeamCountry "SLO"]
[TimeControl "40/5400+30:1800+30"]

1. d4 {[%emt 0:00:04]} Nf6 {[%emt 0:00:17]} 2. c4 {[%emt 0:00:10]} e6 {[%emt 0:00:17]} 3. Nc3 {[%emt 0:00:11]} Bb4 {[%emt 0:00:49]} 4. e3 {[%emt 0:00:58]} c5 {[%emt 0:00:54]} 5. Bd3 {[%emt 0:00:43]} Nc6 {[%emt 0:00:43]} 6. Nf3 {[%emt 0:01:38]} O-O {[%emt 0:03:05]} 7. O-O {[%emt 0:00:22]} Bxc3 {[%emt 0:00:37]} 8. bxc3 {[%emt 0:00:08]} d6 {[%emt 0:00:07]} 9. e4 {[%emt 0:03:11]} e5 {[%emt 0:00:37]} 10. Re1 {[%emt 0:05:19]} cxd4 {[%emt 0:11:16]} 11. cxd4 {[%emt 0:00:31]} Bg4 {[%emt 0:00:07]} 12. dxe5 {[%emt 0:26:38]} Nxe5 {[%emt 0:01:29]} 13. Bf4 {[%emt 0:00:37]} Bxf3 {[%emt 0:01:03]} 14. gxf3 {[%emt 0:06:14]} Nh5 {[%emt 0:00:26]} 15. Bg3 {[%emt 0:03:32]} Qf6 {[%emt 0:00:26]} 16. Be2 {[%emt 0:05:04]} Nf4 {[%emt 0:06:05]} 17. Bxf4 {[%emt 0:05:29]} Qxf4 {[%emt 0:00:11]} 18. Qb3 {[%emt 0:01:46]} f5 {[%emt 0:25:30]} 19. Qxb7 {[%emt 0:11:09]} Rab8 {[%emt 0:02:19]} 20. Qd5+ {[%emt 0:03:23]} Kh8 {[%emt 0:00:11]} 21. Rab1 {[%emt 0:02:11]} Rbd8 {[%emt 0:02:05]} 22. exf5 {[%emt 0:04:33]} Rxf5 {[%emt 0:00:48]} 23. Qe4 {[%emt 0:00:26]} Rg5+ {[%emt 0:00:08]} 24. Kh1 {[%emt 0:00:24]} Ng4 {[%emt 0:00:07]} 0-1

[Event "ETCC Open 2023"]
[Site "Budva"]
[Date "2023.11.11"]
[Round "1.74"]
[White "Sebenik, Matej"]
[Black "Morrison, Graham"]
[Result "1-0"]
[ECO "B13"]
[WhiteElo "2531"]
[BlackElo "2221"]
[Annotator "RC"]
[PlyCount "65"]
[EventDate "2023.11.10"]
[EventType "team-tourn"]
[EventCountry "MNE"]
[SourceTitle "playchess.com"]
[Source "ChessBase"]
[SourceQuality "1"]
[WhiteTeam "Slovenia"]
[BlackTeam "Scotland"]
[WhiteTeamCountry "SLO"]
[BlackTeamCountry "SCO"]
[TimeControl "40/5400+30:1800+30"]

1. d4 {[%emt 0:00:08]} Nf6 {[%emt 0:00:09]} 2. Bf4 {[%emt 0:00:16]} d5 {[%emt 0:00:08]} 3. e3 {[%emt 0:00:06]} c5 {[%emt 0:00:16]} 4. Nf3 {[%emt 0:00:30]} Nc6 {[%emt 0:00:18]} 5. Nbd2 {[%emt 0:00:13]} cxd4 {[%emt 0:01:08]} 6. exd4 {[%emt 0:00:06]} Bg4 {[%emt 0:00:15]} 7. c3 {[%emt 0:01:01]} Bxf3 {[%emt 0:02:55]} 8. Nxf3 {[%emt 0:00:28]} e6 {[%emt 0:00:09]} 9. Qb3 {[%emt 0:01:42]} Qc8 {[%emt 0:01:04]} 10. Bd3 {[%emt 0:01:42]} Be7 {[%emt 0:01:19]} 11. O-O {[%emt 0:00:10]} O-O {[%emt 0:00:14]} 12. Rae1 {[%emt 0:10:55]} Na5 {[%emt 0:02:49]} 13. Qc2 {[%emt 0:02:15]} Nc4 {[%emt 0:00:12]} 14. Ne5 {[%emt 0:04:52]} b5 {[%emt 0:03:01]} 15. Bg5 {[%emt 0:11:14]} h6 {[%emt 0:13:04]} 16. Bh4 {[%emt 0:05:30]} b4 {[%emt 0:10:29]} 17. Bxc4 {[%emt 0:10:47]} dxc4 {[%emt 0:00:21]} 18. Bxf6 {[%emt 0:00:02]} gxf6 {[%emt 0:05:15]} 19. Ng6 {[%emt 0:07:52]} Re8 {[%emt 0:04:18]} 20. Re3 {[%emt 0:09:25]} Bd6 {[%emt 0:06:30]} 21. f4 {[%emt 0:00:40]} b3 {[%emt 0:08:09]} 22. axb3 {[%emt 0:01:39]} cxb3 {[%emt 0:00:10]} 23. Qd3 {[%emt 0:00:22]} f5 {[%emt 0:01:46]} 24. Ne5 {[%emt 0:00:05]} Qc7 {[%emt 0:03:45]} 25. Rh3 {[%emt 0:03:26]} Bf8 {[%emt 0:06:48]} 26. Qg3+ {[%emt 0:16:06]} Kh7 {[%emt 0:04:33]} 27. Qg5 {[%emt 0:00:31]} Bg7 {[%emt 0:03:40]} 28. Rff3 {[%emt 0:03:24]} Qe7 {[%emt 0:06:39]} 29. Qh5 {[%emt 0:00:13]} Rf8 {[%emt 0:01:50]} 30. Rfg3 {[%emt 0:00:20]} f6 {[%emt 0:07:31]} 31. Qg6+ {[%emt 0:01:09]} Kh8 {[%emt 0:00:42]} 32. Rxh6+ {[%emt 0:00:27]} Bxh6 {[%emt 0:00:28]} 33. Qxh6+ {[%emt 0:00:03]} 1-0

[Event "ETCC Open 2023"]
[Site "Budva"]
[Date "2023.11.11"]
[Round "1.75"]
[White "Mitchell, Martin"]
[Black "Skoberne, Jure"]
[Result "1/2-1/2"]
[ECO "E68"]
[WhiteElo "2186"]
[BlackElo "2538"]
[Annotator "RC"]
[PlyCount "62"]
[EventDate "2023.11.10"]
[EventType "team-tourn"]
[EventCountry "MNE"]
[SourceTitle "playchess.com"]
[Source "ChessBase"]
[SourceQuality "1"]
[WhiteTeam "Scotland"]
[BlackTeam "Slovenia"]
[WhiteTeamCountry "SCO"]
[BlackTeamCountry "SLO"]
[TimeControl "40/5400+30:1800+30"]

1. d4 {[%emt 0:00:04]} Nf6 {[%emt 0:00:07]} 2. c4 {[%emt 0:00:41]} d6 {[%emt 0:00:06]} 3. Nc3 {[%emt 0:00:16]} e5 {[%emt 0:00:06]} 4. Nf3 {[%emt 0:02:42]} exd4 {[%emt 0:00:06]} 5. Nxd4 {[%emt 0:02:57]} g6 {[%emt 0:00:06]} 6. g3 {[%emt 0:02:32]} Bg7 {[%emt 0:00:08]} 7. Bg2 {[%emt 0:00:06]} O-O {[%emt 0:00:04]} 8. O-O {[%emt 0:00:54]} Re8 {[%emt 0:00:15]} 9. e4 {[%emt 0:03:22]} Nbd7 {[%emt 0:03:34]} 10. Re1 {[%emt 0:01:49]} Nc5 {[%emt 0:10:48]} 11. h3 {[%emt 0:15:06]} Bd7 {[%emt 0:01:40]} 12. Rb1 {[%emt 0:05:22]} Qc8 {[%emt 0:01:17]} 13. Kh2 {[%emt 0:01:49]} Re5 {[%emt 0:08:17]} 14. b4 {[%emt 0:15:52]} Ne6 {[%emt 0:28:36]} 15. Nxe6 {[%emt 0:01:45]} Bxe6 {[%emt 0:00:33]} 16. Nd5 {[%emt 0:01:47]} Bxd5 {[%emt 0:01:38]} 17. cxd5 {[%emt 0:00:52]} Qe8 {[%emt 0:02:32]} 18. Bb2 {[%emt 0:05:49]} Re7 {[%emt 0:01:19]} 19. Qd3 {[%emt 0:02:05]} Qa4 {[%emt 0:01:33]} 20. Qf3 {[%emt 0:12:22]} Ne8 {[%emt 0:02:44]} 21. Bxg7 {[%emt 0:01:32]} Kxg7 {[%emt 0:00:30]} 22. Qc3+ {[%emt 0:00:57]} Kg8 {[%emt 0:00:19]} 23. Re2 {[%emt 0:03:56]} Qb5 {[%emt 0:05:45]} 24. Re3 {[%emt 0:05:09]} a5 {[%emt 0:01:42]} 25. a4 {[%emt 0:02:11]} axb4 {[%emt 0:03:07]} 26. Rxb4 {[%emt 0:02:47]} Qa5 {[%emt 0:03:20]} 27. f4 {[%emt 0:02:18]} b6 {[%emt 0:03:54]} 28. Bf1 {[%emt 0:01:38]} Qc5 {[%emt 0:00:29]} 29. Rc4 {[%emt 0:00:25]} Qa5 {[%emt 0:00:21]} 30. Rb4 {[%emt 0:00:24]} Qc5 {[%emt 0:04:14]} 31. Rc4 {[%emt 0:00:07]} Qa5 {[%emt 0:00:04]} 1/2-1/2

[Event "ETCC Open 2023"]
[Site "Budva"]
[Date "2023.11.11"]
[Round "1.76"]
[White "Borisek, Jure"]
[Black "Grant, Jonathan I M"]
[Result "1-0"]
[ECO "B12"]
[WhiteElo "2568"]
[BlackElo "2150"]
[Annotator "RC"]
[PlyCount "59"]
[EventDate "2023.11.10"]
[EventType "team-tourn"]
[EventCountry "MNE"]
[SourceTitle "playchess.com"]
[Source "ChessBase"]
[SourceQuality "1"]
[WhiteTeam "Slovenia"]
[BlackTeam "Scotland"]
[WhiteTeamCountry "SLO"]
[BlackTeamCountry "SCO"]
[TimeControl "40/5400+30:1800+30"]

1. e4 {[%emt 0:00:03]} c6 {[%emt 0:00:08]} 2. d4 {[%emt 0:00:24]} d5 {[%emt 0:00:06]} 3. e5 {[%emt 0:00:08]} Bf5 {[%emt 0:00:06]} 4. Nf3 {[%emt 0:00:37]} e6 {[%emt 0:00:09]} 5. Be2 {[%emt 0:00:35]} h6 {[%emt 0:00:39]} 6. O-O {[%emt 0:00:14]} Ne7 {[%emt 0:00:47]} 7. Nbd2 {[%emt 0:02:22]} Nd7 {[%emt 0:00:47]} 8. Nb3 {[%emt 0:00:25]} a5 {[%emt 0:00:09]} 9. a4 {[%emt 0:00:06]} Qc7 {[%emt 0:04:24]} 10. Bd2 {[%emt 0:03:54]} g5 {[%emt 0:02:45]} 11. Ne1 {[%emt 0:06:30]} c5 {[%emt 0:08:21]} 12. c3 {[%emt 0:06:32]} Bg7 {[%emt 0:11:12]} 13. Be3 {[%emt 0:08:23]} Bg6 {[%emt 0:02:33]} 14. Nxc5 {[%emt 0:01:52]} Nxc5 {[%emt 0:03:01]} 15. dxc5 {[%emt 0:00:27]} Bxe5 {[%emt 0:03:01]} 16. Nf3 {[%emt 0:04:16]} Bg7 {[%emt 0:03:52]} 17. Nd4 {[%emt 0:02:22]} Nf5 {[%emt 0:09:54]} 18. Bb5+ {[%emt 0:03:56]} Ke7 {[%emt 0:03:30]} 19. Nxf5+ {[%emt 0:05:29]} Bxf5 {[%emt 0:00:20]} 20. Qd2 {[%emt 0:01:32]} Be5 {[%emt 0:06:28]} 21. g3 {[%emt 0:00:08]} Rag8 {[%emt 0:07:22]} 22. Bd4 {[%emt 0:03:09]} Bxd4 {[%emt 0:18:00]} 23. Qxd4 {[%emt 0:01:18]} h5 {[%emt 0:01:03]} 24. Rad1 {[%emt 0:00:31]} g4 {[%emt 0:02:03]} 25. Rfe1 {[%emt 0:02:44]} Kf8 {[%emt 0:01:50]} 26. c4 {[%emt 0:01:16]} h4 {[%emt 0:04:03]} 27. cxd5 {[%emt 0:00:44]} hxg3 {[%emt 0:01:02]} 28. fxg3 {[%emt 0:00:28]} Rh3 {[%emt 0:04:04]} 29. dxe6 {[%emt 0:00:32]} fxe6 {[%emt 0:03:21]} 30. Qf6+ {[%emt 0:44:33]} 1-0

[Event "ETCC Open 2023"]
[Site "Budva"]
[Date "2023.11.12"]
[Round "2.1"]
[White "Keymer, Vincent"]
[Black "Erdos, Viktor"]
[Result "1-0"]
[ECO "E06"]
[WhiteElo "2721"]
[BlackElo "2557"]
[Annotator "TA"]
[PlyCount "81"]
[EventDate "2023.11.10"]
[EventType "team-tourn"]
[EventCountry "MNE"]
[SourceTitle "playchess.com"]
[Source "ChessBase"]
[SourceQuality "1"]
[WhiteTeam "Germany"]
[BlackTeam "Hungary"]
[WhiteTeamCountry "GER"]
[BlackTeamCountry "HUN"]
[TimeControl "40/5400+30:1800+30"]

{[%evp 14,81,19,10,22,28,27,29,18,0,19,27,31,27,12,0,5,0,0,0,0,-16,-10,-52,-52,-97,-33,-70,-54,-54,0,0,0,0,0,0,6,16,44,56,84,61,96,12,85,87,96,97,173,175,562,563,574,550,614,600,718,638,955,848,892,881,1016,958,1243,1202,1460,1676,1409,1393]} 1. d4 {[%emt 0:00:03]} Nf6 {[%emt 0:00:48]} 2. c4 {[%emt 0:00:05]} e6 {[%emt 0:00:04]} 3. g3 {[%emt 0:04:07]} d5 {[%emt 0:01:25]} 4. Bg2 {[%emt 0:00:06]} Be7 {[%emt 0:00:34]} 5. Nf3 {[%emt 0:04:51]} O-O {[%emt 0:00:12]} 6. Qc2 {[%emt 0:00:08]} c6 {[%emt 0:13:48]} 7. O-O {[%emt 0:04:36]} b6 {[%emt 0:00:21] outshines the older 7...Nbd7.} 8. Nbd2 {[%emt 0:07:50]} c5 {[%emt 0:02:15] E06: Closed Catalan: Early deviations.} 9. dxc5 {[%emt 0:05:18]} bxc5 {[%emt 0:00:51]} 10. b3 {[%emt 0:05:53]} Bb7 {[%emt 0:05:07] White has an edge.} 11. Bb2 {[%emt 0:05:24]} Nbd7 {[%emt 0:06:30]} 12. cxd5 {[%emt 0:15:23]} exd5 {[%emt 0:00:15]} 13. Rad1 {[%emt 0:00:08]} Re8 {[%emt 0:12:43] [#]} 14. Nb1 $146 {[%emt 0:03:48]} ({Predecessor:} 14. Rfe1 a5 15. Bxf6 Nxf6 16. e4 d4 17. Ne5 Nd7 18. Nec4 {½-½ Keevil,P (2284)-Zboril,R (2317) W-ch WS/M/681 email 2018}) 14... Bf8 {[%emt 0:03:37]} 15. e3 {[%emt 0:00:31]} Rc8 {[%emt 0:14:35]} 16. Nc3 {[%emt 0:02:24]} Qa5 {[%emt 0:08:08]} 17. Qd2 {[%emt 0:21:04][%cal Rc3d5]} Qa6 {[%emt 0:06:09]} 18. Rfe1 {[%emt 0:01:08]} c4 {[%emt 0:04:06]} 19. Bf1 {[%emt 0:06:01]} Nc5 {[%emt 0:03:01]} (19... Bb4 $17 {Threatens to win with ...Qa5.} 20. Qd4 Nc5) 20. Nd4 {[%emt 0:00:19]} Nce4 {[%emt 0:01:17]} 21. Qc2 {[%emt 0:01:04]} Nxc3 {[%emt 0:05:58]} (21... Qb6 $1 $15 22. bxc4 dxc4) 22. Bxc3 $11 {[%emt 0:00:24]} Ne4 {[%emt 0:00:03][%cal Oc4b3] Hoping for ...cxb3!} 23. Rb1 {[%emt 0:01:08]} h5 {[%emt 0:03:24]} 24. Ba1 {[%emt 0:01:41]} h4 {[%emt 0:07:19]} 25. f3 {[%emt 0:09:36]} Nc5 {[%emt 0:00:00]} 26. bxc4 {[%emt 0:00:00]} hxg3 {[%emt 0:00:00]} 27. hxg3 {[%emt 0:00:00]} Qh6 {[%emt 0:00:00] [#]} 28. Qf2 {[%emt 0:00:00]} (28. Nf5 $1 $16 {[%cal Rf5h6]} Qg6 29. g4) 28... Ba6 {[%emt 0:01:26]} (28... dxc4 $11 {keeps the balance.} 29. Bxc4 Ba6 30. Bxa6 Qxa6) 29. cxd5 $16 {[%emt 0:00:00] aiming for e4.} Bxf1 {[%emt 0:00:13]} 30. Qxf1 {[%emt 0:00:00] Strongly threatening e4.} Qg5 {[%emt 0:00:47] [#]} (30... Re5 $16 {was necessary.}) 31. e4 $1 $18 {[%emt 0:00:00] Nf5 would be deadly.} Nd3 $2 {[%emt 0:00:31]} (31... Qxg3+ {is a better chance.} 32. Qg2 Qxg2+ 33. Kxg2 f6) 32. Qxd3 {[%emt 0:00:00] White is clearly winning.} Qxg3+ {[%emt 0:00:09]} 33. Kf1 {[%emt 0:00:04][%cal Bg1f1,Bf1e2,Be2d2,Bd2c2,Bc2b3][%mdl 32]} Qh3+ {[%emt 0:00:46]} 34. Ke2 {[%emt 0:00:06]} f5 {[%emt 0:00:32]} 35. Kd2 {[%emt 0:03:10]} Bd6 {[%emt 0:00:25]} 36. Bc3 {[%emt 0:00:45]} fxe4 {[%emt 0:00:33]} 37. fxe4 {[%emt 0:00:22]} Bf4+ {[%emt 0:00:15]} 38. Kc2 {[%emt 0:00:04]} Rxc3+ {[%emt 0:00:40]} 39. Qxc3 {[%emt 0:00:58]} Rc8 {[%emt 0:00:14]} 40. Nc6 {[%emt 0:00:12]} Qg2+ {[%emt 0:00:18]} 41. Kb3 {[%emt 0:31:05] Weighted Error Value: White=0.18 (very precise) /Black=0.41} 1-0

[Event "ETCC Open 2023"]
[Site "Budva"]
[Date "2023.11.12"]
[Round "2.2"]
[White "Gledura, Benjamin"]
[Black "Svane, Rasmus"]
[Result "1/2-1/2"]
[ECO "E06"]
[WhiteElo "2633"]
[BlackElo "2647"]
[Annotator "TA"]
[PlyCount "82"]
[EventDate "2023.11.10"]
[EventType "team-tourn"]
[EventCountry "MNE"]
[SourceTitle "playchess.com"]
[Source "ChessBase"]
[SourceQuality "1"]
[WhiteTeam "Hungary"]
[BlackTeam "Germany"]
[WhiteTeamCountry "HUN"]
[BlackTeamCountry "GER"]
[TimeControl "40/5400+30:1800+30"]

{[%evp 15,82,14,9,5,6,7,0,6,15,13,17,20,7,7,9,2,42,9,3,0,0,-5,0,-6,-8,-22,-22,-27,-22,-22,-23,-25,-13,-20,-13,-13,-11,-11,-8,-8,-8,-9,0,0,0,-6,0,0,0,0,0,-7,-7,-7,-7,-7,-7,-7,0,0,0,-8,0,0,0,-8,0,0,0]} 1. c4 {[%emt 0:00:05]} Nf6 {[%emt 0:00:55]} 2. Nf3 {[%emt 0:00:16]} e6 {[%emt 0:01:31]} 3. g3 {[%emt 0:00:12]} d5 {[%emt 0:00:55]} 4. Bg2 {[%emt 0:00:15]} Be7 {[%emt 0:00:41]} 5. d4 {[%emt 0:00:38]} O-O {[%emt 0:00:28]} 6. Nc3 {[%emt 0:00:23][%cal Bb1c3,Bc3d1,Bd1e3][%mdl 32]} dxc4 {[%emt 0:00:49]} 7. Ne5 {[%emt 0:00:42]} c5 {[%emt 0:00:22]} 8. dxc5 {[%emt 0:00:48]} Qxd1+ {[%emt 0:00:07]} 9. Nxd1 {[%emt 0:00:06] E06: Closed Catalan: Early deviations.} Bxc5 {[%emt 0:00:08]} 10. Ne3 {[%emt 0:01:52]} c3 {[%emt 0:02:18]} 11. bxc3 {[%emt 0:00:14]} Nc6 {[%emt 0:03:27][%cal Bb8c6,Bc6a5,Ba5c4][%mdl 32]} 12. Nd3 {[%emt 0:01:03]} ({But not} 12. Bxc6 bxc6 13. a4 Nd5 $15) 12... Bb6 {[%emt 0:00:07] [#]} 13. Nc4 $146 {[%emt 0:00:34]} ({Predecessor:} 13. Rb1 Na5 14. O-O Bd7 15. c4 Rfc8 16. Ne5 Be8 17. Ba3 Bc5 18. Bxc5 Rxc5 19. f4 {0-1 Abdusattorov,N (2731)-Giri,A (2768) Norway Chess Armageddon 11th rapid 2023 (1)}) 13... Na5 {[%emt 0:00:21]} 14. Nxb6 {[%emt 0:06:42]} axb6 {[%emt 0:00:37]} 15. Be3 {[%emt 0:00:12]} b5 {[%emt 0:13:25]} 16. Bb6 {[%emt 0:24:10]} Nc4 {[%emt 0:13:35]} 17. Bd4 {[%emt 0:00:26]} Re8 {[%emt 0:15:26]} 18. f4 {[%emt 0:20:43]} Nd5 {[%emt 0:16:06]} 19. Kf2 {[%emt 0:15:32]} Bd7 {[%emt 0:00:30]} 20. Bxd5 {[%emt 0:08:03]} exd5 {[%emt 0:00:09]} 21. Ne5 {[%emt 0:00:45]} Nxe5 {[%emt 0:04:36]} 22. Bxe5 {[%emt 0:01:36]} f6 {[%emt 0:00:24]} 23. Bd4 {[%emt 0:02:24]} Kf7 {[%emt 0:02:29]} 24. Rhd1 {[%emt 0:00:50] The position is equal.} h5 {[%emt 0:01:21]} 25. Rd2 {[%emt 0:00:35] [#]} h4 $1 {[%emt 0:07:30]} 26. Rg1 {[%emt 0:04:36]} hxg3+ {[%emt 0:00:43]} 27. hxg3 {[%emt 0:00:02]} Rh8 {[%emt 0:02:13]} 28. g4 {[%emt 0:01:18]} Rh2+ {[%emt 0:01:20]} 29. Ke1 {[%emt 0:00:55]} Rah8 {[%emt 0:02:56]} 30. f5 {[%emt 0:03:32]} R8h3 {[%emt 0:02:55]} 31. a3 {[%emt 0:01:59]} g6 {[%emt 0:01:30]} 32. fxg6+ {[%emt 0:01:40]} Kxg6 {[%emt 0:00:02]} 33. Rd3 {[%emt 0:00:57]} Rxd3 {[%emt 0:02:09]} 34. exd3 $11 {[%emt 0:00:02][%mdl 4096] Endgame KRB-KRB} Ra2 {[%emt 0:00:57]} 35. Rf1 {[%emt 0:00:55]} Ra1+ {[%emt 0:02:35]} 36. Kf2 {[%emt 0:00:06]} Rxa3 {[%emt 0:00:36]} 37. Ke3 {[%emt 0:00:25]} Ra6 {[%emt 0:00:26]} 38. Kf4 {[%emt 0:00:09]} Ra4 {[%emt 0:01:21]} 39. Ke3 {[%emt 0:00:19]} Ra6 {[%emt 0:00:24]} 40. Kf4 {[%emt 0:00:06]} Ra4 {[%emt 0:01:00]} 41. Ke3 {[%emt 0:30:13]} Ra6 {[%emt 0:01:50] Not much happened in this game.   Weighted Error Value: White=0.03 (flawless) /Black=0.04 (flawless)} 1/2-1/2